fUST/lending_fUST_20250601
["ID","MTS","AMOUNT","RATE_DAILY","PERIOD"]
[363528099,1748753078539,-430.0,0.00016438,2]
[363528100,1748753078561,-430.0,0.00016438,2]
[363528101,1748753078583,-430.0,0.00016438,2]
[363528102,1748753078607,-430.0,0.00016438,2]
[363528103,1748753078629,-500.0,0.00016438,2]
[363528104,1748753078653,-500.0,0.00016438,2]
[363528105,1748753078676,-379.61531713,0.00016438,2]
[363528106,1748753078699,-430.0,0.00016438,2]
[363528107,1748753078726,-430.0,0.00016438,2]
[363528108,1748753078749,-430.0,0.00016438,2]
[363528109,1748753078907,-430.0,0.00016438,2]
[363528110,1748753078930,-535.35421942,0.00016438,2]
[363528111,1748753078951,-430.0,0.00016438,2]
[363528112,1748753078972,-498.82860098,0.00016438,2]
[363528113,1748753078994,-432.027105,0.00016438,2]
[363528114,1748753079017,-430.0,0.00016438,2]
[363528115,1748753079040,-430.0,0.00016438,2]
[363528116,1748753079062,-430.0,0.00016438,2]
[363528117,1748753079086,-430.0,0.00016438,2]
[363528118,1748753079108,-314.35526977,0.00016438,2]
[363528119,1748753079130,-430.0,0.00016438,2]
[363528120,1748753079152,-430.0,0.00016438,2]
[363528121,1748753079175,-430.0,0.00016438,2]
[363528122,1748753079198,-430.0,0.00016438,2]
[363528123,1748753079222,-727.55,0.00016438,2]
[363528124,1748753079245,-430.0,0.00016438,2]
[363528125,1748753079267,-430.0,0.00016438,2]
[363528126,1748753079287,-430.0,0.00016438,2]
[363528127,1748753079312,-430.0,0.00016438,2]
[363528128,1748753079336,-430.0,0.00016438,2]
[363528129,1748753079359,-430.0,0.00016438,2]
[363528130,1748753079386,-430.0,0.00016438,2]
[363528131,1748753079413,-1454.59,0.00016438,2]
[363528132,1748753079436,-430.0,0.00016438,2]
[363528133,1748753079460,-430.0,0.00016438,2]
[363528134,1748753079485,-430.0,0.00016438,2]
[363528135,1748753079508,-430.0,0.00016438,2]
[363528136,1748753079531,-430.0,0.00016438,2]
[363528137,1748753079554,-430.0,0.00016438,2]
[363528138,1748753079578,-810.15,0.00016438,2]
[363528139,1748753079604,-430.0,0.00016438,2]
[363528140,1748753079626,-430.0,0.00016438,2]
[363528141,1748753079649,-430.0,0.00016438,2]
[363528142,1748753079672,-578.15,0.00016438,2]
[363528143,1748753079695,-430.0,0.00016438,2]
[363528144,1748753079718,-430.0,0.00016438,2]
[363528145,1748753079743,-430.0,0.00016438,2]
[363528146,1748753079766,-430.0,0.00016438,2]
[363528147,1748753079789,-430.0,0.00016438,2]
[363528148,1748753079812,-430.0,0.00016438,2]
[363528149,1748753079836,-430.0,0.00016438,2]
[363528150,1748753079858,-430.0,0.00016438,2]
[363528151,1748753079880,-430.0,0.00016438,2]
[363528152,1748753079904,-430.0,0.00016438,2]
[363528153,1748753079926,-430.0,0.00016438,2]
[363528154,1748753079952,-430.0,0.00016438,2]
[363528155,1748753079977,-430.0,0.00016438,2]
[363528156,1748753079999,-430.0,0.00016438,2]
[363528157,1748753080020,-430.0,0.00016438,2]
[363528158,1748753080044,-430.0,0.00016438,2]
[363528159,1748753080067,-430.0,0.00016438,2]
[363528160,1748753080091,-430.0,0.00016438,2]
[363528161,1748753080116,-430.0,0.00016438,2]
[363528162,1748753080140,-430.0,0.00016438,2]
[363528163,1748753080164,-430.0,0.00016438,2]
[363528164,1748753080187,-430.0,0.00016438,2]
[363528165,1748753080210,-430.0,0.00016438,2]
[363528166,1748753080231,-430.0,0.00016438,2]
[363528167,1748753080256,-430.0,0.00016438,2]
[363528168,1748753080278,-430.0,0.00016438,2]
[363528169,1748753080302,-628.36,0.00016438,2]
[363528170,1748753080327,-430.0,0.00016438,2]
[363528171,1748753080351,-447.3368377,0.00016438,2]
[363528172,1748753080378,-430.0,0.00016438,2]
[363528173,1748753080402,-430.0,0.00016438,2]
[363528174,1748753080424,-430.0,0.00016438,2]
[363528175,1748753080447,-430.0,0.00016438,2]
[363528176,1748753080470,-430.0,0.00016438,2]
[363528177,1748753080491,-430.0,0.00016438,2]
[363528178,1748753080513,-430.0,0.00016438,2]
[363528179,1748753080536,-430.0,0.00016438,2]
[363528180,1748753080560,-430.0,0.00016438,2]
[363528181,1748753080581,-430.0,0.00016438,2]
[363528182,1748753080603,-430.0,0.00016438,2]
[363528183,1748753080625,-430.0,0.00016438,2]
[363528184,1748753080647,-401.13441329,0.00016438,2]
[363528185,1748753080808,430.0,0.00016438,2]
[363528186,1748753080843,430.0,0.00016438,2]
[363528187,1748753081004,430.0,0.00016438,2]
[363528188,1748753081037,430.0,0.00016438,2]
[363528189,1748753082801,430.0,0.00016438,2]
[363528190,1748753082829,430.0,0.00016438,2]
[363528191,1748753084401,430.0,0.00016438,2]
[363528192,1748753085007,430.0,0.00016438,2]
[363528193,1748753087071,500.0,0.00016438,2]
[363528194,1748753087304,500.0,0.00016438,2]
[363528195,1748753087551,500.0,0.00016438,2]
[363528196,1748753087814,500.0,0.00016438,2]
[363528197,1748753088066,500.0,0.00016438,2]
[363528198,1748753088690,500.0,0.00016438,2]
[363528199,1748753089059,500.0,0.00016438,2]
[363528200,1748753089303,500.0,0.00016438,2]
[363528201,1748753090439,435.81428976,0.00016438,2]
[363528202,1748753091293,430.0,0.00016438,2]
[363528203,1748753092278,430.0,0.00016438,2]
[363528204,1748753092392,430.0,0.00016438,2]
[363528205,1748753092633,430.0,0.00016438,2]
[363528206,1748753093466,430.0,0.00016438,2]
[363528207,1748753095940,430.0,0.00016438,2]
[363528208,1748753096257,463.12294541,0.00016438,2]
[363528209,1748753097147,452.01464146,0.00016438,2]
[363528210,1748753097896,241.06878458,0.00016432,2]
[363528211,1748753097938,430.0,0.00016438,2]
[363528212,1748753097978,594.58089561,0.00016432,2]
[363528213,1748753098282,500.0,0.00016432,2]
[363528214,1748753098312,500.0,0.00016432,2]
[363528215,1748753098341,330.23392685,0.00016432,2]
[363528216,1748753098377,439.75718686,0.00016432,2]
[363528217,1748753098421,196.07779123,0.00016432,2]
[363528218,1748753098452,500.0,0.00016432,2]
[363528219,1748753098496,479.6670082,0.00016432,2]
[363528220,1748753098858,430.0,0.00016438,2]
[363528221,1748753100226,430.0,0.00016438,2]
[363528222,1748753102668,842.08,0.00016438,2]
[363528223,1748753102726,430.0,0.00016438,2]
[363528224,1748753103540,430.0,0.00016438,2]
[363528225,1748753105362,385.40300432,0.00016438,2]
[363528226,1748753105507,473.55,0.00016438,2]
[363528227,1748753106398,155.0,0.00016438,2]
[363528228,1748753109953,1377.75173973,0.00016438,2]
[363528230,1748753117552,446.98836196,0.00016438,2]
[363528231,1748753118001,430.0,0.00016438,2]
[363528232,1748753118136,430.0,0.00016438,2]
[363528233,1748753119383,430.0,0.00016438,2]
[363528234,1748753122200,430.0,0.00016438,2]
[363528235,1748753123909,430.0,0.00016438,2]
[363528236,1748753124195,430.0,0.00016438,2]
[363528237,1748753125172,430.0,0.00016438,2]
[363528238,1748753127915,430.0,0.00016438,2]
[363528239,1748753128431,430.0,0.00016438,2]
[363528240,1748753130283,430.0,0.00016438,2]
[363528241,1748753130643,430.0,0.00016438,2]
[363528242,1748753130711,987.99,0.00016438,2]
[363528243,1748753131059,430.0,0.00016438,2]
[363528244,1748753131812,-157.0,0.00016438,3]
[363528245,1748753131840,-430.0,0.00016462,2]
[363528246,1748753131868,-430.0,0.00016462,2]
[363528247,1748753131894,-193.85598481,0.00016462,2]
[363528248,1748753131919,-300.0,0.00016462,2]
[363528249,1748753131944,-500.0,0.00016462,2]
[363528250,1748753131968,-151.54509574,0.00016462,2]
[363528251,1748753131992,-151.0,0.00016465,2]
[363528252,1748753132017,-500.0,0.00016465,2]
[363528253,1748753132041,-500.0,0.0001649,2]
[363528254,1748753132065,-200.10107987,0.00016493,2]
[363528255,1748753132089,-500.0,0.00016493,2]
[363528256,1748753132111,-500.0,0.00016517,2]
[363528257,1748753132140,-500.0,0.0001652,2]
[363528258,1748753132164,-500.0,0.00016548,2]
[363528259,1748753132189,-500.0,0.00016575,2]
[363528260,1748753132213,-500.0,0.00016602,2]
[363528261,1748753132238,-781.0,0.00016611,2]
[363528262,1748753132263,-500.0,0.0001663,2]
[363528263,1748753132287,-300.0,0.00016656,2]
[363528264,1748753132312,-300.0,0.00016656,2]
[363528265,1748753132336,-200.0,0.00016656,2]
[363528266,1748753132360,-500.0,0.00016657,2]
[363528267,1748753132389,-500.0,0.00016685,2]
[363528268,1748753132416,-385.3,0.00016702,3]
[363528269,1748753132442,-192.65,0.00016702,3]
[363528270,1748753132467,-577.99,0.00016702,3]
[363528271,1748753132493,-500.0,0.00016711,2]
[363528272,1748753132522,-500.0,0.00016711,2]
[363528273,1748753132547,-592.75440353,0.00016712,2]
[363528274,1748753132571,-430.0,0.00016712,2]
[363528275,1748753132596,-430.0,0.00016712,2]
[363528276,1748753132623,-430.0,0.00016712,2]
[363528277,1748753132648,-430.0,0.00016712,2]
[363528278,1748753132672,-430.0,0.00016712,2]
[363528279,1748753132697,-430.0,0.00016712,2]
[363528280,1748753132722,-387.19311173,0.00016712,2]
[363528281,1748753132747,-430.0,0.00016712,2]
[363528282,1748753132773,-253.71572896,0.00016712,2]
[363528283,1748753132797,-573.05378082,0.00016712,2]
[363528284,1748753132822,-430.0,0.00016712,2]
[363528285,1748753132846,-230.52098603,0.00016712,2]
[363528286,1748753132873,-430.0,0.00016712,2]
[363528287,1748753132898,-430.0,0.00016712,2]
[363528288,1748753132924,-361.07240354,0.00016712,2]
[363528289,1748753132950,-430.0,0.00016712,2]
[363528290,1748753132975,-430.0,0.00016712,2]
[363528291,1748753133001,-430.0,0.00016712,2]
[363528292,1748753133026,-430.0,0.00016712,2]
[363528293,1748753133054,-430.0,0.00016712,2]
[363528294,1748753133080,-430.0,0.00016712,2]
[363528295,1748753133106,-431.88315022,0.00016712,2]
[363528296,1748753133135,-430.0,0.00016712,2]
[363528297,1748753133161,-430.0,0.00016712,2]
[363528298,1748753133187,-430.0,0.00016712,2]
[363528299,1748753133214,-430.0,0.00016712,2]
[363528300,1748753133240,-430.0,0.00016712,2]
[363528301,1748753133268,-430.0,0.00016712,2]
[363528302,1748753133295,-430.0,0.00016712,2]
[363528303,1748753133321,-415.03256498,0.00016712,2]
[363528304,1748753133346,-430.0,0.00016712,2]
[363528305,1748753133374,-430.0,0.00016712,2]
[363528306,1748753133404,-430.0,0.00016712,2]
[363528307,1748753133429,-430.0,0.00016712,2]
[363528308,1748753133454,-430.0,0.00016712,2]
[363528309,1748753133482,-430.0,0.00016712,2]
[363528310,1748753133507,-430.0,0.00016712,2]
[363528311,1748753133531,-430.0,0.00016712,2]
[363528312,1748753133554,-533.75333659,0.00016712,2]
[363528313,1748753133581,-430.0,0.00016712,2]
[363528314,1748753133605,-430.0,0.00016712,2]
[363528315,1748753133630,-430.0,0.00016712,2]
[363528316,1748753133655,-430.0,0.00016712,2]
[363528317,1748753133682,-430.0,0.00016712,2]
[363528318,1748753133708,-430.0,0.00016712,2]
[363528319,1748753133733,-430.0,0.00016712,2]
[363528320,1748753133757,-430.0,0.00016712,2]
[363528321,1748753133782,-430.0,0.00016712,2]
[363528322,1748753133807,-371.662124,0.00016712,2]
[363528323,1748753133832,-430.0,0.00016712,2]
[363528324,1748753133858,-430.0,0.00016712,2]
[363528325,1748753133893,-430.0,0.00016712,2]
[363528326,1748753133923,-430.0,0.00016712,2]
[363528327,1748753133950,-658.03,0.00016712,2]
[363528328,1748753133975,-520.28075095,0.00016712,2]
[363528329,1748753134000,-430.0,0.00016712,2]
[363528330,1748753134026,-430.0,0.00016712,2]
[363528331,1748753134052,-430.0,0.00016712,2]
[363528332,1748753134078,-430.0,0.00016712,2]
[363528333,1748753134102,-430.0,0.00016712,2]
[363528334,1748753134129,-430.0,0.00016712,2]
[363528335,1748753134153,-430.0,0.00016712,2]
[363528336,1748753134178,-430.0,0.00016712,2]
[363528337,1748753134206,-1481.68,0.00016712,2]
[363528338,1748753134230,-430.0,0.00016712,2]
[363528339,1748753134459,-430.0,0.00016712,2]
[363528340,1748753134485,-1671.64,0.00016712,2]
[363528341,1748753134510,-1040.54,0.00016712,2]
[363528342,1748753134535,-438.98,0.00016712,2]
[363528343,1748753134558,-430.0,0.00016712,2]
[363528344,1748753134580,-430.0,0.00016712,2]
[363528345,1748753134606,-430.0,0.00016712,2]
[363528346,1748753134632,-430.0,0.00016712,2]
[363528347,1748753134656,-213.12700153,0.00016712,2]
[363528348,1748753134683,-430.0,0.00016712,2]
[363528349,1748753134710,-430.0,0.00016712,2]
[363528350,1748753134735,-381.21161126,0.00016712,2]
[363528351,1748753134760,-430.0,0.00016712,2]
[363528352,1748753134786,-430.0,0.00016712,2]
[363528353,1748753134811,-430.0,0.00016712,2]
[363528354,1748753134835,-430.0,0.00016712,2]
[363528355,1748753134861,-430.0,0.00016712,2]
[363528356,1748753134888,-727.55,0.00016712,2]
[363528357,1748753134912,-456.07446011,0.00016712,2]
[363528358,1748753134937,-430.0,0.00016712,2]
[363528359,1748753134960,-430.0,0.00016712,2]
[363528360,1748753134986,-1454.59,0.00016712,2]
[363528361,1748753135009,-430.0,0.00016712,2]
[363528362,1748753135033,-430.0,0.00016712,2]
[363528363,1748753135057,-452.83495075,0.00016712,2]
[363528364,1748753135080,-430.0,0.00016712,2]
[363528365,1748753135105,-810.15,0.00016712,2]
[363528366,1748753135131,-430.0,0.00016712,2]
[363528367,1748753135157,-578.15,0.00016712,2]
[363528368,1748753135183,-430.0,0.00016712,2]
[363528369,1748753135205,-430.0,0.00016712,2]
[363528370,1748753135229,-430.0,0.00016712,2]
[363528371,1748753135254,-430.0,0.00016712,2]
[363528372,1748753135279,-430.0,0.00016712,2]
[363528373,1748753135303,-430.0,0.00016712,2]
[363528374,1748753135329,-430.0,0.00016712,2]
[363528375,1748753135354,-430.0,0.00016712,2]
[363528376,1748753135380,-430.0,0.00016712,2]
[363528377,1748753135407,-430.0,0.00016712,2]
[363528378,1748753135431,-430.0,0.00016712,2]
[363528379,1748753135456,-430.0,0.00016712,2]
[363528380,1748753135480,-430.0,0.00016712,2]
[363528381,1748753135504,-430.0,0.00016712,2]
[363528382,1748753135528,-430.0,0.00016712,2]
[363528383,1748753135554,-628.36,0.00016712,2]
[363528384,1748753135579,-430.0,0.00016712,2]
[363528385,1748753135604,-430.0,0.00016712,2]
[363528386,1748753135629,-430.0,0.00016712,2]
[363528387,1748753135654,-456.68893584,0.00016712,2]
[363528388,1748753135679,-430.0,0.00016712,2]
[363528389,1748753135704,-430.0,0.00016712,2]
[363528390,1748753135728,-430.0,0.00016712,2]
[363528391,1748753135752,-430.0,0.00016712,2]
[363528392,1748753135776,-249.34,0.00016712,2]
[363528393,1748753135801,-430.0,0.00016712,2]
[363528394,1748753135834,-430.0,0.00016712,2]
[363528395,1748753135858,-462.70083785,0.00016712,2]
[363528396,1748753135885,-460.85964723,0.00016712,2]
[363528397,1748753135912,-430.0,0.00016712,2]
[363528398,1748753135937,-430.0,0.00016712,2]
[363528399,1748753135962,-430.0,0.00016712,2]
[363528400,1748753135987,-430.0,0.00016712,2]
[363528401,1748753136010,-430.0,0.00016712,2]
[363528402,1748753136034,-430.0,0.00016712,2]
[363528403,1748753136058,-842.08,0.00016712,2]
[363528404,1748753136082,-450.14959396,0.00016712,2]
[363528405,1748753136110,-473.55,0.00016712,2]
[363528406,1748753136136,-430.0,0.00016712,2]
[363528407,1748753136160,-430.0,0.00016712,2]
[363528408,1748753136185,-430.0,0.00016712,2]
[363528409,1748753136208,-430.0,0.00016712,2]
[363528410,1748753136232,-430.0,0.00016712,2]
[363528411,1748753136256,-430.0,0.00016712,2]
[363528412,1748753136280,-430.0,0.00016712,2]
[363528413,1748753136307,-987.99,0.00016712,2]
[363528414,1748753136330,-430.0,0.00016736,2]
[363528415,1748753136352,-500.0,0.00016974,2]
[363528416,1748753136375,-500.0,0.00016974,2]
[363528417,1748753136402,-500.0,0.00016974,2]
[363528418,1748753136425,-280.50916485,0.00016974,2]
[363528419,1748753136450,-500.0,0.00016984,2]
[363528420,1748753136478,-500.0,0.00016984,2]
[363528421,1748753136501,-481.30675207,0.00016984,2]
[363528422,1748753136527,-500.0,0.00016984,2]
[363528423,1748753136556,-500.0,0.00016984,2]
[363528424,1748753136582,-500.0,0.00016984,2]
[363528425,1748753136608,-500.0,0.00016984,2]
[363528426,1748753136634,-500.0,0.00016984,2]
[363528427,1748753136659,-500.0,0.00016984,2]
[363528428,1748753136685,-500.0,0.00016984,2]
[363528429,1748753136712,-500.0,0.00016984,2]
[363528430,1748753136740,-500.0,0.00016984,2]
[363528431,1748753136765,-500.0,0.00016984,2]
[363528432,1748753136790,-500.0,0.00016984,2]
[363528433,1748753136817,-375.78431943,0.00016984,2]
[363528434,1748753136843,-500.0,0.00016984,2]
[363528435,1748753136871,-500.0,0.00016984,2]
[363528436,1748753136902,-500.0,0.00016984,2]
[363528437,1748753136929,-500.0,0.00016984,2]
[363528438,1748753136956,-500.0,0.00016984,2]
[363528439,1748753136982,-500.0,0.00016984,2]
[363528440,1748753137008,-500.0,0.00016984,2]
[363528441,1748753137034,-500.0,0.00016984,2]
[363528442,1748753137059,-863.53795669,0.00016984,2]
[363528443,1748753137084,-863.53795669,0.00016984,2]
[363528444,1748753137109,-863.53795669,0.00016984,2]
[363528445,1748753137134,-863.53795669,0.00016984,2]
[363528446,1748753137159,-863.53795669,0.00016984,2]
[363528447,1748753137185,-863.53795669,0.00016984,2]
[363528448,1748753137210,-863.53795669,0.00016984,2]
[363528449,1748753137236,-863.53795669,0.00016984,2]
[363528450,1748753137261,-500.0,0.00016985,2]
[363528451,1748753137284,-430.0,0.00016986,2]
[363528452,1748753137308,-430.0,0.00016986,2]
[363528453,1748753137332,-430.0,0.00016986,2]
[363528454,1748753137358,-430.0,0.00016986,2]
[363528455,1748753137387,-430.0,0.00016986,2]
[363528456,1748753137410,-430.0,0.00016986,2]
[363528457,1748753137436,-430.0,0.00016986,2]
[363528458,1748753137461,-430.0,0.00016986,2]
[363528459,1748753137486,-430.0,0.00016986,2]
[363528460,1748753137512,-430.0,0.00016986,2]
[363528461,1748753137536,-430.0,0.00016986,2]
[363528462,1748753137560,-430.0,0.00016986,2]
[363528463,1748753137584,-430.0,0.00016986,2]
[363528464,1748753137611,-430.0,0.00016986,2]
[363528465,1748753137744,-430.0,0.00016986,2]
[363528466,1748753137791,-430.0,0.00016986,2]
[363528467,1748753137818,-430.0,0.00016986,2]
[363528468,1748753137843,-430.0,0.00016986,2]
[363528469,1748753137868,-658.03,0.00016986,2]
[363528470,1748753137893,-430.0,0.00016986,2]
[363528471,1748753137918,-449.46620062,0.00016986,2]
[363528472,1748753137943,-439.02,0.00016986,2]
[363528473,1748753137967,-430.0,0.00016986,2]
[363528474,1748753137993,-1481.68,0.00016986,2]
[363528475,1748753138017,-430.0,0.00016986,2]
[363528476,1748753138041,-1671.64,0.00016986,2]
[363528477,1748753138068,-1040.54,0.00016986,2]
[363528478,1748753138093,-438.98,0.00016986,2]
[363528479,1748753138117,-430.0,0.00016986,2]
[363528480,1748753138145,-430.0,0.00016986,2]
[363528481,1748753138171,-430.0,0.00016986,2]
[363528482,1748753138196,-438.89982421,0.00016986,2]
[363528483,1748753138223,-430.0,0.00016986,2]
[363528484,1748753138249,-430.0,0.00016986,2]
[363528485,1748753138275,-430.0,0.00016986,2]
[363528486,1748753138301,-727.55,0.00016986,2]
[363528487,1748753138327,-430.0,0.00016986,2]
[363528488,1748753138356,-1454.59,0.00016986,2]
[363528489,1748753138385,-430.0,0.00016986,2]
[363528490,1748753138413,-430.0,0.00016986,2]
[363528491,1748753138438,-430.0,0.00016986,2]
[363528492,1748753138464,-810.15,0.00016986,2]
[363528493,1748753138490,-430.0,0.00016986,2]
[363528494,1748753138516,-578.15,0.00016986,2]
[363528495,1748753138542,-430.0,0.00016986,2]
[363528496,1748753138566,-430.0,0.00016986,2]
[363528497,1748753138592,-430.0,0.00016986,2]
[363528498,1748753138618,-430.0,0.00016986,2]
[363528499,1748753138643,-430.0,0.00016986,2]
[363528500,1748753138682,-544.86879558,0.00016986,2]
[363528501,1748753138708,-430.0,0.00016986,2]
[363528502,1748753138735,-430.0,0.00016986,2]
[363528503,1748753138762,-430.0,0.00016986,2]
[363528504,1748753138791,-628.36,0.00016986,2]
[363528505,1748753138818,-430.0,0.00016986,2]
[363528506,1748753138844,-430.0,0.00016986,2]
[363528507,1748753138871,-430.0,0.00016986,2]
[363528508,1748753138897,-430.0,0.00016986,2]
[363528509,1748753138923,-430.0,0.00016986,2]
[363528510,1748753138948,-472.83129913,0.00016986,2]
[363528511,1748753138973,-430.0,0.00016986,2]
[363528512,1748753138999,-430.0,0.00016986,2]
[363528513,1748753139029,-430.0,0.00016986,2]
[363528514,1748753139056,-430.0,0.00016986,2]
[363528515,1748753139081,-430.0,0.00016986,2]
[363528516,1748753139107,-454.87178783,0.00016986,2]
[363528517,1748753139135,-430.0,0.00016986,2]
[363528518,1748753139161,-152.0529585,0.00016986,2]
[363528519,1748753139188,-842.08,0.00016986,2]
[363528520,1748753139214,-473.55,0.00016986,2]
[363528521,1748753139238,-155.0,0.00016986,2]
[363528522,1748753139264,-430.0,0.00016986,2]
[363528523,1748753139291,-430.0,0.00016986,2]
[363528524,1748753139316,-430.0,0.00016986,2]
[363528525,1748753139341,-430.0,0.00016986,2]
[363528526,1748753139367,-430.0,0.00016986,2]
[363528527,1748753139421,-430.0,0.00016986,2]
[363528528,1748753139462,-987.99,0.00016986,2]
[363528529,1748753139493,-484.05988203,0.0001701,2]
[363528530,1748753139527,-500.0,0.00017259,2]
[363528531,1748753139560,-430.0,0.0001726,2]
[363528532,1748753139593,-570.0,0.0001726,2]
[363528533,1748753139626,-2857.9,0.0001726,2]
[363528534,1748753139659,-430.0,0.0001726,2]
[363528535,1748753139692,-430.0,0.0001726,2]
[363528536,1748753139727,-430.0,0.0001726,2]
[363528537,1748753139762,-430.0,0.0001726,2]
[363528538,1748753139791,-430.0,0.0001726,2]
[363528539,1748753139818,-430.0,0.0001726,2]
[363528540,1748753139850,-430.0,0.0001726,2]
[363528541,1748753139883,-430.0,0.0001726,2]
[363528542,1748753139914,-430.0,0.0001726,2]
[363528543,1748753139950,-430.0,0.0001726,2]
[363528544,1748753139985,-658.03,0.0001726,2]
[363528545,1748753140013,-430.0,0.0001726,2]
[363528546,1748753140043,-1481.68,0.0001726,2]
[363528547,1748753140078,-1671.64,0.0001726,2]
[363528548,1748753140109,-1040.54,0.0001726,2]
[363528549,1748753140140,-438.98,0.0001726,2]
[363528550,1748753140171,-430.0,0.0001726,2]
[363528551,1748753140203,-430.0,0.0001726,2]
[363528552,1748753140231,-430.0,0.0001726,2]
[363528553,1748753140261,-430.0,0.0001726,2]
[363528554,1748753140291,-430.0,0.0001726,2]
[363528555,1748753140323,-430.0,0.0001726,2]
[363528556,1748753140354,-727.55,0.0001726,2]
[363528557,1748753140389,-430.0,0.0001726,2]
[363528558,1748753140420,-430.0,0.0001726,2]
[363528559,1748753140456,-1454.59,0.0001726,2]
[363528560,1748753140487,-414.26767852,0.0001726,2]
[363528561,1748753140515,-430.0,0.0001726,2]
[363528562,1748753140544,-810.15,0.0001726,2]
[363528563,1748753140574,-430.0,0.0001726,2]
[363528564,1748753140604,-578.15,0.0001726,2]
[363528565,1748753140633,-430.0,0.0001726,2]
[363528566,1748753140661,-430.0,0.0001726,2]
[363528567,1748753140690,-430.0,0.0001726,2]
[363528568,1748753140718,-430.0,0.0001726,2]
[363528569,1748753140745,-430.0,0.0001726,2]
[363528570,1748753140774,-481.32547535,0.0001726,2]
[363528571,1748753140802,-430.0,0.0001726,2]
[363528572,1748753140831,-628.36,0.0001726,2]
[363528573,1748753140860,-430.0,0.0001726,2]
[363528574,1748753140894,-430.0,0.0001726,2]
[363528575,1748753140923,-430.0,0.0001726,2]
[363528576,1748753140950,-430.0,0.0001726,2]
[363528577,1748753140978,-430.0,0.0001726,2]
[363528578,1748753141004,-430.0,0.0001726,2]
[363528579,1748753141033,-430.0,0.0001726,2]
[363528580,1748753141063,-430.0,0.0001726,2]
[363528581,1748753141093,-430.0,0.0001726,2]
[363528582,1748753141122,-842.08,0.0001726,2]
[363528583,1748753141157,-473.55,0.0001726,2]
[363528584,1748753141186,-430.0,0.0001726,2]
[363528585,1748753141214,-430.0,0.0001726,2]
[363528586,1748753141240,-430.0,0.0001726,2]
[363528587,1748753141441,-155.82,0.0001726,2]
[363528588,1748753141467,-430.0,0.0001726,2]
[363528589,1748753141494,-430.0,0.0001726,2]
[363528590,1748753141520,-500.0,0.00017382,2]
[363528591,1748753141543,-2857.9,0.00017383,2]
[363528592,1748753141567,-1858.18333776,0.00017434,2]
[363528593,1748753141590,-501.42860662,0.00017441,2]
[363528594,1748753141615,-505.99163466,0.00017441,2]
[363528595,1748753141638,-1000.0,0.00017522,2]
[363528596,1748753141664,-500.0,0.00017533,2]
[363528597,1748753141689,-430.0,0.00017534,2]
[363528598,1748753141714,-430.0,0.00017534,2]
[363528599,1748753141738,-430.0,0.00017534,2]